fUSD/lending_fUSD_20250524
["ID","MTS","AMOUNT","RATE_DAILY","PERIOD"]
[362243181,1748117454974,-1033.08651202,0.00019259,5]
[362243182,1748117454984,-2003.63415836,0.00019259,2]
[362243183,1748117454995,-420.0,0.0001926,2]
[362243184,1748117455005,-334.49022393,0.0001926,2]
[362243185,1748117455014,-420.0,0.0001926,2]
[362243186,1748117455024,-420.0,0.0001926,2]
[362243187,1748117455033,-420.0,0.0001926,2]
[362243188,1748117455043,-366.24899522,0.0001926,2]
[362243189,1748117455053,-420.0,0.0001926,2]
[362243190,1748117455063,-420.0,0.0001926,2]
[362243191,1748117455073,-1385.27,0.0001926,2]
[362243192,1748117455083,-908.32,0.0001926,2]
[362243193,1748117455094,-985.75,0.0001926,2]
[362243194,1748117455103,-420.0,0.0001926,2]
[362243195,1748117455113,-420.0,0.0001926,2]
[362243196,1748117455122,-618.23,0.0001926,2]
[362243197,1748117455131,-420.0,0.0001926,2]
[362243198,1748117455140,-849.67,0.0001926,2]
[362243199,1748117455149,-420.0,0.0001926,2]
[362243200,1748117455158,-285.13103693,0.0001926,2]
[362243201,1748117455167,-420.0,0.0001926,2]
[362243202,1748117455177,-420.0,0.0001926,2]
[362243203,1748117455186,-420.0,0.0001926,2]
[362243204,1748117455195,-420.0,0.0001926,2]
[362243205,1748117455205,-391.28350325,0.0001926,2]
[362243206,1748117455214,-1157.53,0.0001926,2]
[362243207,1748117455224,-439.34226441,0.0001926,2]
[362243208,1748117455234,-886.04,0.0001926,2]
[362243209,1748117455244,-420.0,0.0001926,2]
[362243210,1748117455255,-420.0,0.0001926,2]
[362243211,1748117455265,-186.41788917,0.0001926,2]
[362243212,1748117455275,-343.82308529,0.0001926,2]
[362243213,1748117455285,-420.0,0.0001926,2]
[362243214,1748117455294,-327.31,0.0001926,2]
[362243215,1748117455304,-420.0,0.0001926,2]
[362243216,1748117455313,-420.0,0.0001926,2]
[362243217,1748117455323,-420.0,0.0001926,2]
[362243218,1748117455332,-420.0,0.0001926,2]
[362243219,1748117455342,-420.0,0.0001926,2]
[362243220,1748117455352,-420.0,0.0001926,2]
[362243221,1748117455361,-420.0,0.0001926,2]
[362243222,1748117455371,-420.0,0.0001926,2]
[362243223,1748117455380,-420.0,0.0001926,2]
[362243224,1748117455390,-420.0,0.0001926,2]
[362243225,1748117455399,-420.0,0.0001926,2]
[362243226,1748117455409,-389.9974941,0.0001926,2]
[362243227,1748117455418,-943.28,0.0001926,2]
[362243228,1748117455427,-420.0,0.0001926,2]
[362243229,1748117455437,-420.0,0.0001926,2]
[362243230,1748117455447,-420.0,0.0001926,2]
[362243231,1748117455457,-5653.33,0.0001926,2]
[362243232,1748117455466,-420.0,0.0001926,2]
[362243233,1748117455475,-529.4,0.0001926,2]
[362243234,1748117455485,-420.0,0.0001926,2]
[362243235,1748117455494,-420.0,0.0001926,2]
[362243236,1748117455504,-420.0,0.0001926,2]
[362243237,1748117455514,-3961.59,0.0001926,2]
[362243238,1748117455523,-285.39802636,0.0001926,2]
[362243239,1748117455533,-1625.46,0.0001926,2]
[362243240,1748117455543,-420.0,0.0001926,2]
[362243241,1748117455552,-2212.53,0.0001926,2]
[362243242,1748117455562,-11025.39,0.0001926,2]
[362243243,1748117455571,-420.0,0.0001926,2]
[362243244,1748117455581,-420.0,0.0001926,2]
[362243245,1748117455591,-420.0,0.0001926,2]
[362243246,1748117455600,-1103.27,0.0001926,2]
[362243247,1748117455610,-420.0,0.0001926,2]
[362243248,1748117455619,-915.43,0.0001926,2]
[362243249,1748117455629,-458.48,0.0001926,2]
[362243250,1748117455638,-430.7903981,0.0001926,2]
[362243251,1748117455647,-420.0,0.0001926,2]
[362243252,1748117455657,-420.0,0.0001926,2]
[362243253,1748117455666,-420.0,0.0001926,2]
[362243254,1748117455675,-1622.93,0.0001926,2]
[362243255,1748117455684,-420.0,0.0001926,2]
[362243256,1748117455694,-522.17371716,0.0001926,2]
[362243257,1748117455703,-420.0,0.0001926,2]
[362243258,1748117455713,-139411.7,0.0001926,2]
[362243259,1748117455723,-5710.99,0.0001926,2]
[362243260,1748117455732,-2122.1,0.0001926,2]
[362243261,1748117455741,-420.0,0.0001926,2]
[362243262,1748117455751,-506.07,0.0001926,2]
[362243263,1748117455760,-599.9,0.0001926,2]
[362243264,1748117455769,-2039.49,0.0001926,2]
[362243265,1748117455779,-420.0,0.0001926,2]
[362243266,1748117455787,-420.0,0.0001926,2]
[362243267,1748117455797,-1336.66,0.0001926,2]
[362243268,1748117455806,-420.0,0.0001926,2]
[362243269,1748117455816,-420.0,0.0001926,2]
[362243270,1748117455825,-420.0,0.0001926,2]
[362243271,1748117455834,-420.0,0.0001926,2]
[362243272,1748117455843,-455.89224094,0.0001926,2]
[362243273,1748117455853,-420.0,0.0001926,2]
[362243274,1748117455866,-420.0,0.0001926,2]
[362243275,1748117455875,-420.0,0.0001926,2]
[362243276,1748117455884,-420.0,0.0001926,2]
[362243277,1748117455893,-2331.45,0.0001926,2]
[362243278,1748117455904,-420.0,0.0001926,2]
[362243279,1748117455914,-420.0,0.0001926,2]
[362243280,1748117455923,-2331.48,0.0001926,2]
[362243281,1748117455933,-420.0,0.0001926,2]
[362243282,1748117455942,-420.0,0.0001926,2]
[362243283,1748117455952,-472.11597789,0.0001926,2]
[362243284,1748117455962,-381.46672693,0.0001926,2]
[362243285,1748117455971,-420.0,0.0001926,2]
[362243286,1748117455981,-1010.17,0.0001926,2]
[362243287,1748117455990,-420.0,0.0001926,2]
[362243288,1748117455999,-420.0,0.0001926,2]
[362243289,1748117456009,-420.0,0.0001926,2]
[362243290,1748117456018,-420.0,0.0001926,2]
[362243291,1748117456027,-476.38,0.0001926,2]
[362243292,1748117456036,-420.0,0.0001926,2]
[362243293,1748117456045,-420.0,0.0001926,2]
[362243294,1748117456054,-420.0,0.0001926,2]
[362243295,1748117456063,-420.0,0.0001926,2]
[362243296,1748117456073,-420.0,0.0001926,2]
[362243297,1748117456081,-420.0,0.0001926,2]
[362243298,1748117456091,-2012.08,0.0001926,2]
[362243299,1748117456100,-420.0,0.0001926,2]
[362243300,1748117456109,-157.88776984,0.0001926,2]
[362243301,1748117456119,-420.0,0.0001926,2]
[362243302,1748117456128,-6143.93,0.0001926,2]
[362243303,1748117456138,-420.0,0.0001926,2]
[362243304,1748117456147,-420.0,0.0001926,2]
[362243305,1748117456156,-4396.86,0.0001926,2]
[362243306,1748117456166,-420.0,0.0001926,2]
[362243307,1748117456175,-420.0,0.0001926,2]
[362243308,1748117456184,-420.0,0.0001926,2]
[362243309,1748117456193,-420.0,0.0001926,2]
[362243310,1748117456203,-420.0,0.0001926,2]
[362243311,1748117456212,-420.0,0.0001926,2]
[362243312,1748117456222,-420.0,0.0001926,2]
[362243313,1748117456232,-4230.85,0.0001926,2]
[362243314,1748117456241,-7374.08,0.0001926,2]
[362243315,1748117456250,-420.0,0.0001926,2]
[362243316,1748117456259,-443.68,0.0001926,2]
[362243317,1748117456268,-420.0,0.0001926,2]
[362243318,1748117456278,-420.0,0.0001926,2]
[362243319,1748117456287,-420.0,0.0001926,2]
[362243320,1748117456296,-420.0,0.0001926,2]
[362243321,1748117456306,-420.0,0.0001926,2]
[362243322,1748117456316,-1352.04,0.0001926,2]
[362243323,1748117456325,-420.0,0.0001926,2]
[362243324,1748117456335,-420.0,0.0001926,2]
[362243325,1748117456344,-420.0,0.0001926,2]
[362243326,1748117456354,-226.75417437,0.0001926,2]
[362243327,1748117456363,-538.03890185,0.0001926,2]
[362243328,1748117456373,-327.58827314,0.0001926,2]
[362243329,1748117456382,-420.0,0.0001926,2]
[362243330,1748117456392,-420.0,0.0001926,2]
[362243331,1748117456401,-420.0,0.0001926,2]
[362243332,1748117456411,-560.44825089,0.0001926,2]
[362243333,1748117456420,-420.0,0.0001926,2]
[362243334,1748117456430,-420.0,0.0001926,2]
[362243335,1748117456439,-420.0,0.0001926,2]
[362243336,1748117456449,-420.0,0.0001926,2]
[362243337,1748117456458,-420.0,0.0001926,2]
[362243338,1748117456468,-2498.63,0.0001926,2]
[362243339,1748117456477,-713.21,0.0001926,2]
[362243340,1748117456487,-420.0,0.0001926,2]
[362243341,1748117456496,-665.35,0.0001926,2]
[362243342,1748117456505,-3833.23,0.0001926,2]
[362243343,1748117456515,-420.0,0.0001926,2]
[362243344,1748117456524,-420.0,0.0001926,2]
[362243345,1748117456533,-299.12136523,0.0001926,2]
[362243346,1748117456543,-420.0,0.0001926,2]
[362243347,1748117456553,-420.0,0.0001926,2]
[362243348,1748117456563,-420.0,0.0001926,2]
[362243349,1748117456573,-420.0,0.0001926,2]
[362243350,1748117456582,-539.58002629,0.0001926,2]
[362243351,1748117456592,-508.45,0.0001926,2]
[362243352,1748117456602,-420.0,0.0001926,2]
[362243353,1748117456611,-5208.31,0.0001926,2]
[362243354,1748117456621,-420.0,0.0001926,2]
[362243355,1748117456630,-420.0,0.0001926,2]
[362243356,1748117456639,-420.0,0.0001926,2]
[362243357,1748117456649,-1108.98046642,0.00019276,2]
[362243358,1748117456658,-231.6,0.00019286,2]
[362243359,1748117456667,-420.0,0.00019287,2]
[362243360,1748117456677,-420.0,0.00019287,2]
[362243361,1748117456686,-420.0,0.00019287,2]
[362243362,1748117456695,-152.464525,0.00019287,2]
[362243363,1748117456704,-420.0,0.00019287,2]
[362243364,1748117456714,-152.925138,0.00019287,2]
[362243365,1748117456723,-420.0,0.00019287,2]
[362243366,1748117456733,-1385.27,0.00019287,2]
[362243367,1748117456742,-908.32,0.00019287,2]
[362243368,1748117456752,-985.75,0.00019287,2]
[362243369,1748117456761,-420.0,0.00019287,2]
[362243370,1748117456770,-484.45387155,0.00019287,2]
[362243371,1748117456780,-618.23,0.00019287,2]
[362243372,1748117456790,-153.59847359,0.00019287,2]
[362243373,1748117456799,-420.0,0.00019287,2]
[362243374,1748117456809,-849.67,0.00019287,2]
[362243375,1748117456818,-420.0,0.00019287,2]
[362243376,1748117456827,-420.0,0.00019287,2]
[362243377,1748117456836,-276.78378169,0.00019287,2]
[362243378,1748117456846,-1157.53,0.00019287,2]
[362243379,1748117456856,-886.04,0.00019287,2]
[362243380,1748117456868,-231.69585072,0.00019287,2]
[362243381,1748117456879,-420.0,0.00019287,2]
[362243382,1748117456887,-420.0,0.00019287,2]
[362243383,1748117456897,-420.0,0.00019287,2]
[362243384,1748117456907,-420.0,0.00019287,2]
[362243385,1748117456918,-322.1940437,0.00019287,2]
[362243386,1748117456928,-420.0,0.00019287,2]
[362243387,1748117456940,-420.0,0.00019287,2]
[362243388,1748117456949,-420.0,0.00019287,2]
[362243389,1748117456959,-420.0,0.00019287,2]
[362243390,1748117456969,-420.0,0.00019287,2]
[362243391,1748117456980,-943.28,0.00019287,2]
[362243392,1748117456990,-420.0,0.00019287,2]
[362243393,1748117457000,-420.0,0.00019287,2]
[362243394,1748117457009,-420.0,0.00019287,2]
[362243395,1748117457018,-5653.33,0.00019287,2]
[362243396,1748117457029,-420.0,0.00019287,2]
[362243397,1748117457038,-529.4,0.00019287,2]
[362243398,1748117457048,-420.0,0.00019287,2]
[362243399,1748117457059,-3961.59,0.00019287,2]
[362243400,1748117457071,-1625.46,0.00019287,2]
[362243401,1748117457080,-420.0,0.00019287,2]
[362243402,1748117457089,-2212.53,0.00019287,2]
[362243403,1748117457098,-11025.39,0.00019287,2]
[362243404,1748117457107,-420.0,0.00019287,2]
[362243405,1748117457116,-189.60356482,0.00019287,2]
[362243406,1748117457125,-420.0,0.00019287,2]
[362243407,1748117457134,-1103.27,0.00019287,2]
[362243408,1748117457143,-420.0,0.00019287,2]
[362243409,1748117457154,-915.43,0.00019287,2]
[362243410,1748117457163,-458.48,0.00019287,2]
[362243411,1748117457173,-420.0,0.00019287,2]
[362243412,1748117457186,-420.0,0.00019287,2]
[362243413,1748117457197,-1622.93,0.00019287,2]
[362243414,1748117457208,-420.0,0.00019287,2]
[362243415,1748117457219,-139411.7,0.00019287,2]
[362243416,1748117457231,-5710.99,0.00019287,2]
[362243417,1748117457240,-2122.1,0.00019287,2]
[362243418,1748117457250,-420.0,0.00019287,2]
[362243419,1748117457259,-506.07,0.00019287,2]
[362243420,1748117457268,-599.9,0.00019287,2]
[362243421,1748117457279,-2039.49,0.00019287,2]
[362243422,1748117457289,-420.0,0.00019287,2]
[362243423,1748117457299,-420.0,0.00019287,2]
[362243424,1748117457308,-1336.66,0.00019287,2]
[362243425,1748117457318,-420.0,0.00019287,2]
[362243426,1748117457328,-350.53062974,0.00019287,2]
[362243427,1748117457337,-294.33088648,0.00019287,2]
[362243428,1748117457346,-420.0,0.00019287,2]
[362243429,1748117457526,-420.0,0.00019287,2]
[362243430,1748117457536,-420.0,0.00019287,2]
[362243431,1748117457546,-2331.45,0.00019287,2]
[362243432,1748117457555,-420.0,0.00019287,2]
[362243433,1748117457565,-420.0,0.00019287,2]
[362243434,1748117457575,-2331.48,0.00019287,2]
[362243435,1748117457585,-420.0,0.00019287,2]
[362243436,1748117457595,-420.0,0.00019287,2]
[362243437,1748117457605,-333.84050053,0.00019287,2]
[362243438,1748117457615,-1010.17,0.00019287,2]
[362243439,1748117457625,-420.0,0.00019287,2]
[362243440,1748117457635,-486.43900973,0.00019287,2]
[362243441,1748117457644,-476.38,0.00019287,2]
[362243442,1748117457665,-420.0,0.00019287,2]
[362243443,1748117457684,-420.0,0.00019287,2]
[362243444,1748117457694,-420.0,0.00019287,2]
[362243445,1748117457703,-2012.08,0.00019287,2]
[362243446,1748117457713,-420.0,0.00019287,2]
[362243447,1748117457723,-420.0,0.00019287,2]
[362243448,1748117457732,-6143.93,0.00019287,2]
[362243449,1748117457741,-420.0,0.00019287,2]
[362243450,1748117457751,-420.0,0.00019287,2]
[362243451,1748117457760,-4396.86,0.00019287,2]
[362243452,1748117457769,-544.98,0.00019287,2]
[362243453,1748117457778,-420.0,0.00019287,2]
[362243454,1748117457788,-420.0,0.00019287,2]
[362243455,1748117457798,-175.03372909,0.00019287,2]
[362243456,1748117457808,-269.634795,0.00019287,2]
[362243457,1748117457817,-4230.85,0.00019287,2]
[362243458,1748117457826,-7374.08,0.00019287,2]
[362243459,1748117457836,-443.68,0.00019287,2]
[362243460,1748117457846,-420.0,0.00019287,2]
[362243461,1748117457856,-420.0,0.00019287,2]
[362243462,1748117457867,-420.0,0.00019287,2]
[362243463,1748117457877,-420.0,0.00019287,2]
[362243464,1748117457886,-1352.04,0.00019287,2]
[362243465,1748117457896,-420.0,0.00019287,2]
[362243466,1748117457906,-420.0,0.00019287,2]
[362243467,1748117457915,-420.0,0.00019287,2]
[362243468,1748117457926,-420.0,0.00019287,2]
[362243469,1748117457936,-420.0,0.00019287,2]
[362243470,1748117457946,-420.0,0.00019287,2]
[362243471,1748117457955,-420.0,0.00019287,2]
[362243472,1748117457965,-2498.63,0.00019287,2]
[362243473,1748117457975,-713.21,0.00019287,2]
[362243474,1748117457986,-420.0,0.00019287,2]
[362243475,1748117457995,-665.35,0.00019287,2]
[362243476,1748117458005,-3833.23,0.00019287,2]
[362243477,1748117458014,-420.0,0.00019287,2]
[362243478,1748117458024,-420.0,0.00019287,2]
[362243479,1748117458034,-420.0,0.00019287,2]
[362243480,1748117458044,-420.0,0.00019287,2]
[362243481,1748117458054,-420.0,0.00019287,2]
[362243482,1748117458063,-508.45,0.00019287,2]
[362243483,1748117458073,-5208.31,0.00019287,2]
[362243484,1748117458082,-420.0,0.00019287,2]
[362243485,1748117458092,-420.0,0.00019287,2]
[362243486,1748117458101,-420.0,0.00019287,2]
[362243487,1748117458111,-168.58121526,0.00019297,2]
[362243488,1748117458120,-469.432,0.00019308,2]
[362243489,1748117458131,-420.0,0.00019315,2]
[362243490,1748117458143,-420.0,0.00019315,2]
[362243491,1748117458152,-420.0,0.00019315,2]
[362243492,1748117458163,-152.464525,0.00019315,2]
[362243493,1748117458173,-420.0,0.00019315,2]
[362243494,1748117458183,-420.0,0.00019315,2]
[362243495,1748117458193,-1385.27,0.00019315,2]
[362243496,1748117458203,-908.32,0.00019315,2]
[362243497,1748117458213,-985.75,0.00019315,2]
[362243498,1748117458223,-420.0,0.00019315,2]
[362243499,1748117458233,-618.23,0.00019315,2]
[362243500,1748117458243,-420.0,0.00019315,2]
[362243501,1748117458253,-849.67,0.00019315,2]
[362243502,1748117458262,-420.0,0.00019315,2]
[362243503,1748117458271,-420.0,0.00019315,2]
[362243504,1748117458281,-1157.53,0.00019315,2]
[362243505,1748117458291,-886.04,0.00019315,2]
[362243506,1748117458300,-420.0,0.00019315,2]
[362243507,1748117458309,-379.43532036,0.00019315,2]
[362243508,1748117458319,-420.0,0.00019315,2]
[362243509,1748117458328,-420.0,0.00019315,2]
[362243510,1748117458337,-420.0,0.00019315,2]
[362243511,1748117458349,-420.0,0.00019315,2]
[362243512,1748117458359,-424.03974855,0.00019315,2]
[362243513,1748117458369,-420.0,0.00019315,2]
[362243514,1748117458378,-943.28,0.00019315,2]
[362243515,1748117458387,-420.0,0.00019315,2]
[362243516,1748117458397,-420.0,0.00019315,2]
[362243517,1748117458406,-420.0,0.00019315,2]
[362243518,1748117458415,-5653.33,0.00019315,2]
[362243519,1748117458425,-420.0,0.00019315,2]
[362243520,1748117458434,-529.4,0.00019315,2]
[362243521,1748117458443,-420.0,0.00019315,2]
[362243522,1748117458453,-3961.59,0.00019315,2]
[362243523,1748117458463,-1625.46,0.00019315,2]
[362243524,1748117458472,-420.0,0.00019315,2]
[362243525,1748117458481,-2212.53,0.00019315,2]
[362243526,1748117458491,-11025.39,0.00019315,2]
[362243527,1748117458500,-420.0,0.00019315,2]
[362243528,1748117458509,-420.0,0.00019315,2]
[362243529,1748117458519,-1103.27,0.00019315,2]
[362243530,1748117458528,-330.32,0.00019315,2]
[362243531,1748117458537,-915.43,0.00019315,2]
[362243532,1748117458546,-458.48,0.00019315,2]
[362243533,1748117458556,-420.0,0.00019315,2]
[362243534,1748117458566,-1622.93,0.00019315,2]
[362243535,1748117458575,-420.0,0.00019315,2]
[362243536,1748117458585,-139411.7,0.00019315,2]
[362243537,1748117458595,-5710.99,0.00019315,2]
[362243538,1748117458604,-2122.1,0.00019315,2]
[362243539,1748117458614,-506.07,0.00019315,2]
[362243540,1748117458623,-599.9,0.00019315,2]
[362243541,1748117458633,-2039.49,0.00019315,2]
[362243542,1748117458642,-420.0,0.00019315,2]
[362243543,1748117458652,-420.0,0.00019315,2]
[362243544,1748117458661,-1336.66,0.00019315,2]
[362243545,1748117458671,-420.0,0.00019315,2]
[362243546,1748117458680,-420.0,0.00019315,2]
[362243547,1748117458690,-420.0,0.00019315,2]
[362243548,1748117458699,-2331.45,0.00019315,2]
[362243549,1748117458710,-420.0,0.00019315,2]
[362243550,1748117458720,-420.0,0.00019315,2]
[362243551,1748117458730,-2331.48,0.00019315,2]
[362243552,1748117458739,-420.0,0.00019315,2]
[362243553,1748117458748,-420.0,0.00019315,2]
[362243554,1748117458758,-1010.17,0.00019315,2]
[362243555,1748117458767,-239.76307217,0.00019315,2]
[362243556,1748117458777,-476.38,0.00019315,2]
[362243557,1748117458786,-420.0,0.00019315,2]
[362243558,1748117458795,-420.0,0.00019315,2]
[362243559,1748117458805,-2012.08,0.00019315,2]
[362243560,1748117458814,-536.16269391,0.00019315,2]
[362243561,1748117458823,-420.0,0.00019315,2]
[362243562,1748117458834,-6143.93,0.00019315,2]
[362243563,1748117458843,-420.0,0.00019315,2]
[362243564,1748117458852,-420.0,0.00019315,2]
[362243565,1748117458867,-4396.86,0.00019315,2]
[362243566,1748117458877,-420.0,0.00019315,2]
[362243567,1748117458886,-420.0,0.00019315,2]
[362243568,1748117458895,-4230.85,0.00019315,2]
[362243569,1748117458906,-7374.08,0.00019315,2]
[362243570,1748117458915,-443.68,0.00019315,2]
[362243571,1748117458925,-420.0,0.00019315,2]
[362243572,1748117458935,-420.0,0.00019315,2]
[362243573,1748117458945,-1352.04,0.00019315,2]
[362243574,1748117458954,-420.0,0.00019315,2]
[362243575,1748117458963,-420.0,0.00019315,2]
[362243576,1748117458973,-157.892716,0.00019315,2]
[362243577,1748117458982,-420.0,0.00019315,2]
[362243578,1748117458992,-420.0,0.00019315,2]
[362243579,1748117459002,-420.0,0.00019315,2]
[362243580,1748117459011,-420.0,0.00019315,2]
[362243581,1748117459020,-2498.63,0.00019315,2]
[362243582,1748117459030,-713.21,0.00019315,2]
[362243583,1748117459039,-420.0,0.00019315,2]
[362243584,1748117459049,-665.35,0.00019315,2]
[362243585,1748117459059,-3833.23,0.00019315,2]
[362243586,1748117459068,-372.49771507,0.00019315,2]
[362243587,1748117459077,-420.0,0.00019315,2]
[362243588,1748117459087,-420.0,0.00019315,2]
[362243589,1748117459096,-420.0,0.00019315,2]
[362243590,1748117459105,-420.0,0.00019315,2]
[362243591,1748117459114,-508.45,0.00019315,2]
[362243592,1748117459123,-5208.31,0.00019315,2]
[362243593,1748117459133,-420.0,0.00019315,2]
[362243594,1748117459142,-420.0,0.00019315,2]
[362243595,1748117459152,-274.58810457,0.00019342,2]
[362243596,1748117459161,-420.0,0.00019342,2]
[362243597,1748117459170,-420.0,0.00019342,2]
[362243598,1748117459179,-152.464525,0.00019342,2]
[362243599,1748117459189,-420.0,0.00019342,2]
[362243600,1748117459198,-420.0,0.00019342,2]
[362243601,1748117459207,-1385.27,0.00019342,2]
[362243602,1748117459216,-908.32,0.00019342,2]
[362243603,1748117459226,-985.75,0.00019342,2]
[362243604,1748117459235,-420.0,0.00019342,2]
[362243605,1748117459245,-618.23,0.00019342,2]
[362243606,1748117459254,-420.0,0.00019342,2]
[362243607,1748117459263,-849.67,0.00019342,2]
[362243608,1748117459272,-420.0,0.00019342,2]
[362243609,1748117459282,-420.0,0.00019342,2]
[362243610,1748117459291,-1157.53,0.00019342,2]
[362243611,1748117459300,-886.04,0.00019342,2]
[362243612,1748117459309,-420.0,0.00019342,2]
[362243613,1748117459318,-420.0,0.00019342,2]
[362243614,1748117459327,-420.0,0.00019342,2]
[362243615,1748117459337,-420.0,0.00019342,2]
[362243616,1748117459347,-158.20908644,0.00019342,2]
[362243617,1748117459356,-420.0,0.00019342,2]
[362243618,1748117459366,-943.28,0.00019342,2]
[362243619,1748117459375,-420.0,0.00019342,2]
[362243620,1748117459384,-420.0,0.00019342,2]
[362243621,1748117459394,-420.0,0.00019342,2]
[362243622,1748117459403,-5653.33,0.00019342,2]
[362243623,1748117459413,-387.01184129,0.00019342,2]
[362243624,1748117459423,-529.4,0.00019342,2]
[362243625,1748117459432,-3961.59,0.00019342,2]
[362243626,1748117459442,-1625.46,0.00019342,2]
[362243627,1748117459451,-2212.53,0.00019342,2]
[362243628,1748117459461,-11025.39,0.00019342,2]
[362243629,1748117459471,-420.0,0.00019342,2]
[362243630,1748117459480,-420.0,0.00019342,2]
[362243631,1748117459492,-1103.27,0.00019342,2]
[362243632,1748117459503,-915.43,0.00019342,2]
[362243633,1748117459512,-458.48,0.00019342,2]
[362243634,1748117459522,-198.06552988,0.00019342,2]
[362243635,1748117459531,-1622.93,0.00019342,2]
[362243636,1748117459542,-420.0,0.00019342,2]
[362243637,1748117459553,-139411.7,0.00019342,2]
[362243638,1748117459563,-5710.99,0.00019342,2]
[362243639,1748117459572,-2122.1,0.00019342,2]
[362243640,1748117459583,-506.07,0.00019342,2]
[362243641,1748117459593,-599.9,0.00019342,2]
[362243642,1748117459603,-2039.49,0.00019342,2]
[362243643,1748117459613,-420.0,0.00019342,2]
[362243644,1748117459623,-1336.66,0.00019342,2]
[362243645,1748117459632,-420.0,0.00019342,2]
[362243646,1748117459641,-356.46018373,0.00019342,2]
[362243647,1748117459651,-552.75823452,0.00019342,2]
[362243648,1748117459660,-2331.45,0.00019342,2]
[362243649,1748117459670,-420.0,0.00019342,2]
[362243650,1748117459679,-420.0,0.00019342,2]
[362243651,1748117459689,-2331.48,0.00019342,2]
[362243652,1748117459699,-420.0,0.00019342,2]
[362243653,1748117459708,-420.0,0.00019342,2]
[362243654,1748117459718,-1010.17,0.00019342,2]
[362243655,1748117459727,-476.38,0.00019342,2]
[362243656,1748117459737,-420.0,0.00019342,2]
[362243657,1748117459746,-420.0,0.00019342,2]
[362243658,1748117459755,-2012.08,0.00019342,2]
[362243659,1748117459764,-154.12694,0.00019342,2]
[362243660,1748117459774,-420.0,0.00019342,2]
[362243661,1748117459783,-6143.93,0.00019342,2]
[362243662,1748117459792,-420.0,0.00019342,2]
[362243663,1748117459801,-420.0,0.00019342,2]
[362243664,1748117459810,-4396.86,0.00019342,2]
[362243665,1748117459819,-420.0,0.00019342,2]
[362243666,1748117459828,-192.64670434,0.00019342,2]
[362243667,1748117459838,-4230.85,0.00019342,2]
[362243668,1748117459847,-7374.08,0.00019342,2]
[362243669,1748117459859,-443.68,0.00019342,2]
[362243670,1748117459869,-420.0,0.00019342,2]
[362243671,1748117459878,-420.0,0.00019342,2]
[362243672,1748117459887,-1352.04,0.00019342,2]
[362243673,1748117459896,-420.0,0.00019342,2]
[362243674,1748117459906,-420.0,0.00019342,2]
[362243675,1748117459916,-420.0,0.00019342,2]
[362243676,1748117459973,-420.0,0.00019342,2]
[362243677,1748117459983,-420.0,0.00019342,2]
[362243678,1748117459992,-420.0,0.00019342,2]
[362243679,1748117460002,-2498.63,0.00019342,2]
[362243680,1748117460011,-713.21,0.00019342,2]